Cogmind - Beta 16 @@@ ROGUE MODE // 2026.01.15 @ 00:37:09 Player: Legato Result: Destroyed by S-27 Virus with Autogun Performance ------------- Evolutions (3) 1500 Regions Visited (10) 2000 Robots Destroyed (49) 245 Value Destroyed (1678) 1678 Prototype IDs (29) 580 Alien Tech Used (0) 0 Bonus (500) 500 TOTAL SCORE: 6503 Bonus ------- Entered Garrisons 200 Aligned with FarCom 300 Cogmind --------- Core Integrity 0/700 Matter 208/300 Energy 100/100 System Corruption 7% Temperature Cool (0) Movement Core (50) Location -7/Garrison Parts ------- > --- POWER (1) -------- (None) > --- PROPULSION (4) --- (None) > --- UTILITY (6) ------ (None) > --- WEAPON (2) ------- (None) > --- INVENTORY (5) ---- Small Storage Unit Relay Coupler [Demolisher] (25) Axe Hellfire Trap Armageddon Trap Peak State ------------ > --- POWER ------------ Light Nuclear Core > --- PROPULSION ------- Light Treads Improved Treads Advanced Treads Wheel > --- UTILITY ---------- Large Storage Unit Machine Analyzer Hardened Medium Armor Plating Hacking Suite > --- WEAPON ----------- High-powered Shotgun Missile Launcher > --- INVENTORY -------- Improved Ion Engine Improved Heat Sink Medium Matter Pod Advanced Weight Redist. System ECM Suite Light Armor Plating Army-in-a-Box Heavy Assault Rifle Grenade Launcher Heavy Hammer [Rating: 33] Favorites ----------- Power Ion Engine Engine Ion Engine Power Core Nuclear Core Propulsion Wheel Treads Light Treads Wheel Wheel Flight Unit Cesium-ion Thruster Utility Hacking Suite Device Seismic Detector Storage Large Storage Unit Processor Machine Analyzer Hackware Hacking Suite Protection Hardened Medium Armor Plating Weapon Grenade Launcher Energy Gun Particle Gun Ballistic Gun High-powered Shotgun Launcher Grenade Launcher Impact Weapon Heavy Hammer Slashing Weapon Axe Build | -11 -10 -10 -10 -9 -8 -8 -7 -7 -7 -7 ------- Run | Yrd Mat Min Exi Min Mat Sto Fac Was Fac Gar Slots Evolved 6 | . . . . . 4 . 2 . . . Power . | . . . . . . . . . . . Propulsion 2 | . . . . . 2 . . . . . Utility 4 | . . . . . 2 . 2 . . . Weapon . | . . . . . . . . . . . Parts Attached 68 | 7 16 1 . . 13 5 2 1 12 11 Power 10 | 1 4 . . . 1 . . . 3 1 Engine 6 | 1 4 . . . . . . . 1 . Core 4 | . . . . . 1 . . . 2 1 Reactor . | . . . . . . . . . . . Propulsion 18 | 2 4 . . . 4 3 . . 1 4 Treads 9 | 2 1 . . . . 3 . . . 3 Leg . | . . . . . . . . . . . Wheel 8 | . 3 . . . 4 . . . . 1 Hover . | . . . . . . . . . . . Flight 1 | . . . . . . . . . 1 . Utility 21 | 2 4 . . . 4 . 1 . 6 4 Device 7 | 1 1 . . . . . . . 2 3 Storage 2 | 1 1 . . . . . . . . . Processor 4 | . . . . . 1 . 1 . 2 . Hackware 2 | . . . . . 1 . . . 1 . Protection 6 | . 2 . . . 2 . . . 1 1 Artifact . | . . . . . . . . . . . Weapon 19 | 2 4 1 . . 4 2 1 1 2 2 Energy Gun 5 | 1 3 . . . . 1 . . . . Energy Cannon . | . . . . . . . . . . . Ballistic Gun 7 | 1 . . . . 4 . . . . 2 Ballistic Cannon . | . . . . . . . . . . . Launcher 5 | . 1 1 . . . 1 . 1 1 . Special Weapon . | . . . . . . . . . . . Impact Weapon 1 | . . . . . . . 1 . . . Slashing Weapon 1 | . . . . . . . . . 1 . Piercing Weapon . | . . . . . . . . . . . Special Melee Weapon . | . . . . . . . . . . . Unidentified Prototypes 4 | . . . . . . 1 . 1 . 2 Parts Lost 18 | . 4 . . . . 4 . . 3 7 Power 3 | . 1 . . . . . . . 1 1 Propulsion 8 | . 1 . . . . 2 . . 1 4 Utility 2 | . . . . . . 1 . . . 1 Weapon 5 | . 2 . . . . 1 . . 1 1 Highest Loss Streak 4 | . 3 . . . . 3 . . 3 4 To Critical Strikes . | . . . . . . . . . . . Average Backups 6 | 4 7 9 9 10 9 9 4 5 4 2 Power . | . 1 1 1 1 1 1 1 1 1 . Propulsion 1 | 3 2 2 2 2 . . . . . . Utility 3 | . 3 6 6 7 5 5 2 3 . 1 Weapon 1 | . . . . . 2 2 . 1 2 1 Tool/Special . | . . . . . . . . . . . Unused Backups 13 | . 3 . . . 2 3 1 . 1 3 Power 1 | . . . . . . . 1 . . . Propulsion 2 | . 2 . . . . . . . . . Utility 9 | . 1 . . . 2 3 . . 1 2 Weapon 1 | . . . . . . . . . . 1 Tool/Special . | . . . . . . . . . . . Average Slot Usage (%) 78 | . 96 100 100 100 97 96 9 15 36 70 Engine 6 | . 13 14 14 14 7 . . . . . Core 2 | . . . . . 1 8 . . 2 6 Treads 7 | . 14 . . . . 13 . . . 10 Wheel 13 | . 12 28 28 28 35 21 . . . 3 Device 8 | . 7 14 14 14 . . . . 10 23 Storage 8 | . 14 14 14 14 9 8 . . . . Processor 3 | . . . . . 4 8 2 7 4 5 Hackware 3 | . . . . . 8 8 . . 5 6 Protection 4 | . 6 . . . 12 8 . . . 3 Energy Gun 4 | . 15 4 . . . . . . . . Ballistic Gun 6 | . 9 . . . 15 14 . . . 3 Launcher 4 | . 1 23 28 28 2 3 . . . . Slashing Weapon 1 | . . . . . . . . . 5 6 Peak Build Rating 33 | 7 8 8 13 13 29 33 6 10 27 32 Average Rating 15 | 4 7 8 10 13 25 28 4 6 16 25 On Entrance 10 | . 7 8 8 13 13 28 1 6 10 23 Avg Prop Armor Cover (%) 11 | . 9 . . . . 11 . . . 16 Naked Turns 60 | . . . . . . 9 3 . 37 11 Heaviest Build 42 | 12 30 32 32 32 40 42 3 9 18 25 Greatest Support 52 | 40 40 20 20 20 52 46 3 3 15 49 Greatest Overweight (x) 6 | . 1 1 1 1 . 4 . 2 1 6 Average Overweight (x) . | . . 1 1 1 . 1 . . . . Largest Inventory Capacity 15 | 8 15 15 15 15 15 15 5 5 5 5 Average Capacity 9 | 6 9 15 15 15 15 14 5 5 5 5 Most Carried 15 | 6 9 9 15 15 15 15 5 5 5 5 Average Carried 8 | 5 7 9 11 15 14 14 4 4 3 4 Final Capacity 15 | 8 15 15 15 15 15 5 5 5 5 5 Final Carried 15 | 6 9 9 15 15 15 5 5 4 4 5 Class Distribution -------------------- 80% | Mutant 19% | Scavenger-Mutant Dominant Class ---------------- Mutant | -10/Materials Mutant | -10/Mines Mutant | -10/Exiles Mutant | -9/Mines Mutant | -8/Materials Scavenger-Mutant | -8/Storage Mutant | -7/Factory Mutant | -7/Waste Mutant | -7/Factory Scavenger-Mutant | -7/Garrison Resources | -11 -10 -10 -10 -9 -8 -8 -7 -7 -7 -7 ----------- Run | Yrd Mat Min Exi Min Mat Sto Fac Was Fac Gar Matter Collected 1637 | 277 256 . . 34 333 81 43 . 354 259 Remotely . | . . . . . . . . . . . Salvage Created 1712 | 120 582 . . 46 247 268 43 . 172 234 Parts 105 | 9 26 . . 2 22 18 3 . 12 13 Haulers Intercepted 2 | . . . . . . . . . 2 . Recyclers Shooed . | . . . . . . . . . . . Parts Field Recycled . | . . . . . . . . . . . Retrieved Matter . | . . . . . . . . . . . Parts Self-Destructed . | . . . . . . . . . . . Prevented . | . . . . . . . . . . . Parts Restored . | . . . . . . . . . . . Kills | -11 -10 -10 -10 -9 -8 -8 -7 -7 -7 -7 ------- Run | Yrd Mat Min Exi Min Mat Sto Fac Was Fac Gar Combat Hostiles Destroyed 32 | . 13 . . 3 5 7 1 . 3 . Melee 1 | . . . . . . . 1 . . . Guns 21 | . 13 . . . 5 3 . . . . AOE 10 | . . . . 3 . 4 . . 3 . Classes Destroyed 11 | 2 3 . . . 3 1 1 . 1 . Worker 5 | . 1 . . . 1 . 1 . 2 . Builder 2 | . . . . . . 1 . . 1 . Tunneler 3 | 2 1 . . . . . . . . . Hauler 2 | . . . . . . . . . 2 . Recycler 1 | 1 . . . . . . . . . . Mechanic 1 | . . . . . 1 . . . . . Operator 2 | . . . . . 1 . . . 1 . Watcher 1 | . 1 . . . . . . . . . Swarmer 4 | . . . . . . . 1 . 3 . Grunt 23 | . 13 . . 3 3 4 . . . . Sentry 5 | . . . . . 2 3 . . . . Best Kill Streak 3 | 3 3 . . 3 3 3 2 . 3 . Combat Bots Only 3 | . 3 . . 3 3 3 1 . 3 . Max Kills in Single Turn 2 | 1 1 . . 1 1 2 1 . 2 . Gunslinging . | . . . . . . . . . . . Exploded 2 | . . . . 1 . 2 . . 2 . Melee 1 | . . . . . . . 1 . . . Uniques/NPCs Destroyed . | . . . . . . . . . . . Combat | -11 -10 -10 -10 -9 -8 -8 -7 -7 -7 -7 -------- Run | Yrd Mat Min Exi Min Mat Sto Fac Was Fac Gar Hostile Shots Fired 441 | . 102 . . 4 16 85 . . 67 167 Missed 128 | . 20 . . 2 3 20 . . 33 50 Hits 313 | . 82 . . 2 13 65 . . 34 117 Projectile 313 | . 82 . . 2 13 65 . . 34 117 Critical Strikes 6 | . . . . 1 1 2 . . . 2 Damage Taken 4147 | . 993 . . 58 197 1053 . 7 436 1403 Core 1165 | . 167 . . 13 1 274 . 7 163 540 Absorbed by Shields . | . . . . . . . . . . . Redirected to Shielding 41 | . 41 . . . . . . . . . Regen/Repaired (Parts) 47 | . 33 . . . . . . . 14 . Core Remaining (%) 59 | 100 . . . 28 . 50 . . . . Volleys Fired 139 | 7 67 . . 4 15 32 . 1 5 8 Largest 2 | 2 2 . . 2 2 2 . 1 1 1 Hottest 105 | 60 105 . . 60 50 66 . 36 39 33 Shots Fired 223 | 14 111 . . 8 30 46 . 1 5 8 Gun 195 | 14 110 . . . 30 33 . . . 8 Cannon . | . . . . . . . . . . . Launcher 28 | . 1 . . 8 . 13 . 1 5 . Special . | . . . . . . . . . . . Kinetic 115 | 7 37 . . . 30 33 . . . 8 Thermal 80 | 7 73 . . . . . . . . . Explosive 27 | . 1 . . 8 . 13 . . 5 . Electromagnetic 1 | . . . . . . . . 1 . . Robot Hit Streak 14 | 4 14 . . 11 12 10 . . . 6 Robot Miss Streak 5 | 2 1 . . . 2 5 . 1 3 1 Penetration Max . | . . . . . . . . . . . Secondary Targets 2 | . 2 . . . . . . . . . Max Gunslinging Chain 1 | . 1 . . . . . . . . . Shots Hit Robots 185 | 9 88 . . 3 23 26 3 . 11 22 Core Hits 97 | 4 30 . . 9 16 25 1 1 8 3 Critical Kills . | . . . . . . . . . . . Critical Parts Destroyed 1 | . . . . . . . 1 . . . Critical Strikes 4 | . 2 . . . . . 1 . . 1 Burn 2 | . 2 . . . . . . . . . Smash 1 | . . . . . . . 1 . . . Sever 1 | . . . . . . . . . . 1 Melee Attacks 95 | . . . . . . . 13 . 55 27 Impact 13 | . . . . . . . 13 . . . Slashing 82 | . . . . . . . . . 55 27 Piercing . | . . . . . . . . . . . Sneak Attacks 8 | . . . . . . . 3 . 5 . Combat Hostiles . | . . . . . . . . . . . Follow-up Attacks . | . . . . . . . . . . . Damage Inflicted 5374 | 102 1164 . . 240 467 1030 174 7 1043 1147 Guns 2195 | 102 1158 . . . 465 322 . . . 148 Cannons . | . . . . . . . . . . . Explosions 1347 | . . . . 240 . 684 . 7 416 . Melee 1779 | . . . . . . . 174 . 622 983 Ramming 53 | . 6 . . . 2 24 . . 5 16 Kinetic 1348 | 48 365 . . . 465 322 . . . 148 Thermal 847 | 54 793 . . . . . . . . . Explosive 1340 | . . . . 240 . 684 . . 416 . Electromagnetic 7 | . . . . . . . . 7 . . Impact 174 | . . . . . . . 174 . . . Slashing 1605 | . . . . . . . . . 622 983 Piercing . | . . . . . . . . . . . Highest Corruption 7 | . . . . . 1 1 . 7 7 7 Average Corruption 4 | . . . . . 1 1 . 7 7 7 Corruption Purged . | . . . . . . . . . . . Corruption Blocked . | . . . . . . . . . . . Effects 38 | . . . . . 1 4 . 2 18 13 Message Errors 12 | . . . . . . 1 . . 3 8 Matter Fused 12 | . . . . . 1 . . . 8 3 Heat Flow Errors 4 | . . . . . . 1 . 1 1 1 Energy Discharges 4 | . . . . . . 1 . . 3 . Data Loss (minor) 4 | . . . . . . 1 . 1 1 1 Data Loss (major) 2 | . . . . . . . . . 2 . Overload Shots . | . . . . . . . . . . . Overflow Damage 331 | . . . . . . 10 39 . 86 196 Projectiles . | . . . . . . . . . . . Explosions 19 | . . . . . . 10 . . 9 . Melee 312 | . . . . . . . 39 . 77 196 Knockbacks 2 | . . . . . . 1 1 . . . Impact 2 | . . . . . . 1 1 . . . Kinetic . | . . . . . . . . . . . Secondary . | . . . . . . . . . . . Self-Inflicted Damage 253 | . . . . 35 1 97 . 7 105 8 Shots 9 | . . . . 2 . 4 . 1 2 . Rammed 11 | 1 3 . . . 1 3 . . 2 1 Targets Rammed 11 | 1 3 . . . 1 3 . . 2 1 Kicked . | . . . . . . . . . . . Crushed . | . . . . . . . . . . . Highest Temperature 282 | . 282 . . 33 24 264 . 72 233 157 Average Temperature 77 | . 91 . . 29 11 46 . 38 122 49 Received Heat Transfer 1509 | . 561 . . 33 99 423 . . 78 315 Effects 2 | . 2 . . . . . . . . . Energy Bleed 2 | . 2 . . . . . . . . . Siege Activations . | . . . . . . . . . . . Martial Activations . | . . . . . . . . . . . Shielding Activations . | . . . . . . . . . . . Robots Disrupted . | . . . . . . . . . . . Combat Hostiles . | . . . . . . . . . . . Robots Corrupted . | . . . . . . . . . . . Combat Hostiles . | . . . . . . . . . . . Parts Fried 1 | . . . . . . . 1 . . . Impact Corruptions 1 | . . . . . . . 1 . . . Robots Melted . | . . . . . . . . . . . Combat Hostiles . | . . . . . . . . . . . Parts Melted 5 | . 5 . . . . . . . . . Heat Transferred 2181 | 125 2056 . . . . . . . . . Parts Sabotaged . | . . . . . . . . . . . Parts Stolen . | . . . . . . . . . . . Parts Stripped . | . . . . . . . . . . . Power Chain Reactions . | . . . . . . . . . . . Alert | -11 -10 -10 -10 -9 -8 -8 -7 -7 -7 -7 ------- Run | Yrd Mat Min Exi Min Mat Sto Fac Was Fac Gar Maximum Alert Level 1 | . . . . . . . . . 1 1 Low Security (%) 86 | 100 100 100 . 100 100 100 100 100 86 15 Level 1 13 | . . . . . . . . . 13 84 Level 2 . | . . . . . . . . . . . Level 3 . | . . . . . . . . . . . Level 4 . | . . . . . . . . . . . Level 5 . | . . . . . . . . . . . High Security . | . . . . . . . . . . . Max Security . | . . . . . . . . . . . Peak Influence 306 | 5 77 . . 89 85 168 63 12 251 306 Initial 161 | . . . . . 18 35 62 12 . 161 Average 59 | 1 23 . . 66 17 37 43 4 64 233 Influence Increases 1586 | 15 411 . . 89 170 254 35 . 452 160 Destroy 0b10 Robot/C 640 | . 260 . . 60 100 140 20 . 60 . Destroy 0b10 Robot/NC 110 | 15 15 . . . 15 5 5 . 30 25 Destroy Leader 166 | . 72 . . 10 30 40 . . 14 . Successful Hack 78 | . 14 . . . 10 10 . . 44 . Select Force Hacks 30 | . 30 . . . . . . . . . Disable Machine 165 | . . . . . 15 15 . . 75 60 Anti-Garrison Action 50 | . . . . . . . . . . 50 Destroy Structure 152 | . 5 . . 19 . 44 10 . 64 10 Lose Combat Pursuer 195 | . 15 . . . . . . . 165 15 Influence Decreases 1335 | 15 411 . . 40 134 201 136 37 222 139 Entered New Map 251 | . . . . . 31 50 76 25 . 69 Time Decay 820 | 15 312 . . 40 78 111 60 12 192 . Lost Part 170 | . 30 . . . . 40 . . 30 70 Purge Threat 94 | . 69 . . . 25 . . . . . Squads Dispatched 13 | . 5 . . . 1 2 . . 5 . Investigation 5 | . 3 . . . 1 . . . 1 . Extermination 2 | . . . . . . . . . 2 . Reinforcement 5 | . 2 . . . . 1 . . 2 . Assault . | . . . . . . . . . . . Garrison 1 | . . . . . . 1 . . . . Intercept . | . . . . . . . . . . . Searches Triggered . | . . . . . . . . . . . Construction Impeded 1 | . . . . . . 1 . . . . Haulers Reinforced 1 | . . . . . . . . . 1 . Active Scanning Responses . | . . . . . . . . . . . Cargo Convoy Interrupts . | . . . . . . . . . . . Stealth | -11 -10 -10 -10 -9 -8 -8 -7 -7 -7 -7 --------- Run | Yrd Mat Min Exi Min Mat Sto Fac Was Fac Gar Distress Signals 3 | . 2 . . . . . . . 1 . Communications Jammed . | . . . . . . . . . . . Distress Signals . | . . . . . . . . . . . Times Spotted 80 | . 19 . . 2 6 15 . 6 24 8 Peak Tracking Total 9 | . 3 . . 2 3 5 . 6 9 9 Tactical Retreats 8 | . 2 . . . . . . . 5 1 Traps | -11 -10 -10 -10 -9 -8 -8 -7 -7 -7 -7 ------- Run | Yrd Mat Min Exi Min Mat Sto Fac Was Fac Gar Traps Triggered 6 | . 1 . . . 1 1 1 . 2 . Indirectly . | . . . . . . . . . . . Trap Hack Attempts . | . . . . . . . . . . . Triggered . | . . . . . . . . . . . Disarmed . | . . . . . . . . . . . Reprogrammed . | . . . . . . . . . . . Reused . | . . . . . . . . . . . Traps Extracted . | . . . . . . . . . . . Installed . | . . . . . . . . . . . Triggered . | . . . . . . . . . . . Most Traps Carried 6 | . . . . . . . . . . 6 Machines | -11 -10 -10 -10 -9 -8 -8 -7 -7 -7 -7 ---------- Run | Yrd Mat Min Exi Min Mat Sto Fac Was Fac Gar Machines Disabled 13 | . . . . . 1 1 . . 5 6 Max in Single Turn 1 | . . . . . 1 1 . . 1 1 Garrison Relay 1 | . . . . . . . . . . 1 Machines Repaired . | . . . . . . . . . . . Machines Dismantled . | . . . . . . . . . . . Machines Sabotaged . | . . . . . . . . . . . Overloaded Fab Kills . | . . . . . . . . . . . Hacking | -11 -10 -10 -10 -9 -8 -8 -7 -7 -7 -7 --------- Run | Yrd Mat Min Exi Min Mat Sto Fac Was Fac Gar Machines Accessed 26 | . 7 . 1 . 3 4 . . 10 1 Terminals 15 | . 5 . . . 3 2 . . 4 1 Fabricators 1 | . . . . . . . . . 1 . Repair Stations 3 | . 1 . . . . . . . 2 . Recycling Units 4 | . 1 . . . . 2 . . 1 . Scanalyzers 1 | . . . . . . . . . 1 . Garrison Access 1 | . . . . . . . . . 1 . Total Hacks 68 | . 17 . 1 . 14 8 . . 24 4 Successful 29 | . 8 . 1 . 6 6 . . 8 . Failed 39 | . 9 . . . 8 2 . . 16 4 Catastrophic 6 | . 3 . . . . 1 . . 1 1 Database Lockouts . | . . . . . . . . . . . Manual 25 | . 10 . 1 . 4 3 . . 7 . Terminals 45 | . 12 . . . 14 4 . . 11 4 Fabricators 1 | . . . . . . . . . 1 . Repair Stations 9 | . 4 . . . . . . . 5 . Recycling Units 8 | . 1 . . . . 4 . . 3 . Scanalyzers 3 | . . . . . . . . . 3 . Garrison Access 1 | . . . . . . . . . 1 . Terminal Hacks 13 | . 4 . 1 . 4 2 . . 2 . Record 1 | . 1 . . . . . . . . . Prototype ID Bank 1 | . 1 . . . . . . . . . Open Door 1 | . . . . . . 1 . . . . Open DSF 1 | . . . . . . . . . 1 . Unreport Threat 2 | . 1 . . . 1 . . . . . Locate Traps 1 | . . . . . 1 . . . . . Dispatch Records 1 | . . . . . 1 . . . . . Reinforcement Status 1 | . . . . . . 1 . . . . Zone Layout 3 | . 1 . . . 1 . . . 1 . Proto ID Catalog 1 | . . . 1 . . . . . . . Fabricator Hacks 1 | . . . . . . . . . 1 . Network Status 1 | . . . . . . . . . 1 . Repair Station Hacks 4 | . 2 . . . . . . . 2 . Scan Component 2 | . 1 . . . . . . . 1 . Repair 2 | . 1 . . . . . . . 1 . Recycling Unit Hacks 2 | . . . . . . 2 . . . . Report Inventory 2 | . . . . . . 2 . . . . Scanalyzer 2 | . . . . . . . . . 2 . Retrieve Study 2 | . . . . . . . . . 2 . Garrison Access Hacks 1 | . . . . . . . . . 1 . Unlock Access 1 | . . . . . . . . . 1 . Unauthorized Hacks 6 | . 2 . . . 2 2 . . . . Terminals 3 | . 1 . . . 2 . . . . . Botnet 3 | . 1 . . . 2 . . . . . Fabricators . | . . . . . . . . . . . Repair Stations . | . . . . . . . . . . . Recycling Units 3 | . 1 . . . . 2 . . . . Reject 2 | . . . . . . 2 . . . . Tunnel 1 | . 1 . . . . . . . . . Scanalyzers . | . . . . . . . . . . . Garrison Access . | . . . . . . . . . . . Data Cores Recovered . | . . . . . . . . . . . Used . | . . . . . . . . . . . Hacking Detections 19 | . 5 . . . 3 2 . . 8 1 Full Trace Events 3 | . 1 . . . 1 . . . 1 . Feedback Events . | . . . . . . . . . . . Feedback Blocked . | . . . . . . . . . . . Robot Schematics Acquired . | . . . . . . . . . . . Robots Built . | . . . . . . . . . . . Authchips . | . . . . . . . . . . . Time . | . . . . . . . . . . . Total Robot Build Rating . | . . . . . . . . . . . Part Schematics Acquired . | . . . . . . . . . . . Parts Built . | . . . . . . . . . . . Authchips . | . . . . . . . . . . . Time . | . . . . . . . . . . . Total Part Build Rating . | . . . . . . . . . . . Part Studies Acquired 2 | . . . . . . . . . 2 . Parts Repaired 2 | . 1 . . . . . . . 1 . Time 45 | . 26 . . . . . . . 19 . Parts Recycled . | . . . . . . . . . . . Recycled Matter . | . . . . . . . . . . . Retrieved Matter . | . . . . . . . . . . . Retrieved Components . | . . . . . . . . . . . Parts Scanalyzed . | . . . . . . . . . . . Part Schematics Acquired . | . . . . . . . . . . . Parts Damaged . | . . . . . . . . . . . Bothacking | -11 -10 -10 -10 -9 -8 -8 -7 -7 -7 -7 ------------ Run | Yrd Mat Min Exi Min Mat Sto Fac Was Fac Gar Used RIF Installer . | . . . . . . . . . . . Robots Hacked . | . . . . . . . . . . . Non-combat . | . . . . . . . . . . . Combat . | . . . . . . . . . . . Robot Hacks Applied . | . . . . . . . . . . . Relay Couplers Released 3 | . . . . . . . . . . 3 Machine Destruction 3 | . . . . . . . . . . 3 Fabnet Peak Effective % . | . . . . . . . . . . . Robots Rewired . | . . . . . . . . . . . Allies Hacked . | . . . . . . . . . . . Hacks Repelled . | . . . . . . . . . . . Allies | -11 -10 -10 -10 -9 -8 -8 -7 -7 -7 -7 -------- Run | Yrd Mat Min Exi Min Mat Sto Fac Was Fac Gar Total Allies . | . . . . . . . . . . . Largest Group . | . . . . . . . . . . . Highest-Rated Group . | . . . . . . . . . . . Highest-Rated Ally . | . . . . . . . . . . . Total Orders . | . . . . . . . . . . . Ally Attacks . | . . . . . . . . . . . Total Damage . | . . . . . . . . . . . Kills . | . . . . . . . . . . . Allies Corrupted . | . . . . . . . . . . . Allies Melted . | . . . . . . . . . . . Intel | -11 -10 -10 -10 -9 -8 -8 -7 -7 -7 -7 ------- Run | Yrd Mat Min Exi Min Mat Sto Fac Was Fac Gar Active Infowar (turns) 2084 | 24 548 95 242 95 165 346 57 54 130 328 Traps 231 | . . . . . . . . . . 231 Seismic 1004 | 24 548 95 242 95 . . . . . . Machine Analysis 849 | . . . . . 165 346 57 54 130 97 Robot Analysis Total . | . . . . . . . . . . . Derelict Logs Recovered 1 | . . . . 1 . . . . . . Drone Launches . | . . . . . . . . . . . Drone Recoveries . | . . . . . . . . . . . Exploration | -11 -10 -10 -10 -9 -8 -8 -7 -7 -7 -7 ------------- Run | Yrd Mat Min Exi Min Mat Sto Fac Was Fac Gar Turns Passed 3366 | 112 1017 95 242 95 317 355 125 54 541 413 Spaces Moved 2855 | 49 619 97 253 88 224 162 166 95 821 281 Core 544 | 4 . . . . . 13 166 95 197 69 Treads 329 | 45 238 . . . . 4 . . . 42 Legs . | . . . . . . . . . . . Wheels 1358 | . 381 97 253 88 224 145 . . . 170 Hover . | . . . . . . . . . . . Flight 624 | . . . . . . . . . 624 . Fastest Speed 35 | 50 80 95 95 95 85 50 50 50 35 50 Average Speed 81 | 151 118 95 95 95 88 101 50 51 40 97 Slowest Speed 350 | 160 160 95 95 95 90 160 50 150 100 350 Overloaded Moves . | . . . . . . . . . . . Propulsion Burnouts . | . . . . . . . . . . . Robots Hopped 14 | . . . . . . . . . 14 . Potential Cave-ins . | . . . . . . . . . . . Cave-ins Triggered . | . . . . . . . . . . . Exploration Rate (%) 41 | 5 91 26 61 46 17 50 5 86 26 39 Regions Visited 10 Branch Regions 4 Pre-discovered Areas 1 | . 1 . . . . . . . . . Known Exits Taken 2 | . . . . 1 . . . . 1 . Unknown Exits Taken 6 | 1 1 1 1 . 1 1 . . . . Scrap Searched . | . . . . . . . . . . . Spaces Dug 62 | . 5 . . 9 . . 10 . 38 . Terrain Destroyed 190 | . 5 . . 33 . 74 10 . 68 . Melee 48 | . . . . . . . 10 . 38 . Projectile . | . . . . . . . . . . . AOE 142 | . 5 . . 33 . 74 . . 30 . Terrain Rammed . | . . . . . . . . . . . Walls Destroyed . | . . . . . . . . . . . Machines Disabled . | . . . . . . . . . . . Actions | -11 -10 -10 -10 -9 -8 -8 -7 -7 -7 -7 --------- Run | Yrd Mat Min Exi Min Mat Sto Fac Was Fac Gar Total 3482 | 69 788 99 254 91 316 304 186 100 914 361 Wait 224 | . 61 2 . . 47 89 . 4 18 3 Move 2822 | 48 618 96 252 87 223 161 166 94 796 281 Hop 10 | . . . . . . . . . 10 . Pick Up 38 | 6 10 . 1 . 5 3 3 . 6 4 Fast Attach 34 | 7 2 . . . 4 1 1 . 8 11 Attach 18 | . 3 . . . 5 . 1 1 7 1 Detach 5 | . . . . . 2 . . . 3 . Swap 31 | . 13 1 . . 5 9 . . 1 2 Drop 35 | . 11 . . . 9 6 2 . 3 4 Fire 139 | 7 67 . . 4 15 32 . 1 5 8 Melee 95 | . . . . . . . 13 . 55 27 Ram 9 | . 2 . . . 1 3 . . 2 1 Kick . | . . . . . . . . . . . Crush 2 | 1 1 . . . . . . . . . Escape Stasis . | . . . . . . . . . . . Rewire 20 | . . . 1 . . . . . . 19 Trap . | . . . . . . . . . . . Miscellaneous . | . . . . . . . . . . . Route ------- -11/Scrapyard -10/Materials (discovered 4 exits: [*Mat x3] / [*Min]) -10/Mines -10/Exiles -9/Mines (discovered 2 exits: *Mat x2) -8/Materials -8/Storage -7/Factory -7/Waste -7/Factory -7/Garrison History --------- Turn | Location | Event 7 | -11/Scrapyard | Discovered new exit (range 15) 113 | -11/Scrapyard | Entered Materials 303 | -10/Materials | Build established: Mutant 371 | -10/Materials | Discovered new exit (range 9) 607 | -10/Materials | Discovered new exit (range 12) 713 | -10/Materials | Derelicts attacked the area 881 | -10/Materials | Core integrity fell below 50% 926 | -10/Materials | Discovered new exit (range 13) 926 | -10/Materials | Discovered new exit (range 16) 927 | -10/Materials | Lost 3 parts (1p1n1w) 1043 | -10/Materials | Repaired Wheel 1130 | -10/Materials | Entered Mines 1147 | -10/Mines | YI-UF0 nonchalantly dropped a Grenade Launcher on the ground 1220 | -10/Mines | Deemed a non-threat by the Exiles lab entrance 1221 | -10/Mines | Discovered new exit (range 5) 1225 | -10/Mines | Entered Exiles 1249 | -10/Exiles | Met 8R-AWN 1267 | -10/Exiles | Met EX-HEX 1313 | -10/Exiles | Met EX-BIN 1333 | -10/Exiles | Aligned with FarCom system 1334 | -10/Exiles | Given EX-Vault access code 1362 | -10/Exiles | Opened EX-Vault 1369 | -10/Exiles | Found Army-in-a-Box 1389 | -10/Exiles | Warned to stay clear of 0b10 Research branches 1422 | -10/Exiles | Met EX-DEC 1455 | -10/Exiles | Discovered new exit (range 14) 1467 | -10/Exiles | Left Exiles lab with Army-in-a-Box 1467 | -10/Exiles | Entered Mines 1492 | -9/Mines | Identified exit to Materials 1547 | -9/Mines | Discovered exit to Materials (range 16) 1562 | -9/Mines | Entered Materials 1562 | -8/Materials | Evolved 4 slots: Propulsion x2, Utility x2 1861 | -8/Materials | Discovered new exit (range 7) 1879 | -8/Materials | Entered Storage 2163 | -8/Storage | Build established: Scavenger-Mutant 2209 | -8/Storage | Garrison activated, responded to threat 2225 | -8/Storage | Released all parts (8) 2230 | -8/Storage | Discovered new exit (range 5) 2234 | -8/Storage | Entered Factory 2234 | -7/Factory | Evolved 2 slots: Utility x2 2255 | -7/Factory | Lost 3 parts (1n1u1w) 2359 | -7/Factory | Sucked down chute 2359 | -7/Factory | Entered Waste 2374 | -7/Waste | EMP discharged 2388 | -7/Waste | Spotted C-40 Crusher 2388 | -7/Waste | Spotted C-40 Crusher 2397 | -7/Waste | Spotted C-40 Crusher 2398 | -7/Waste | Spotted C-40 Crusher 2398 | -7/Waste | Spotted C-40 Crusher 2399 | -7/Waste | Discovered new exit (range 16) 2400 | -7/Waste | Spotted C-40 Crusher 2413 | -7/Waste | Entered Factory 2522 | -7/Factory | Build established: Mutant 2526 | -7/Factory | Repaired Axe? 2897 | -7/Factory | Lost 3 parts (1p1n1w) 2953 | -7/Factory | Identified exit to Garrison 2954 | -7/Factory | Entered Garrison 3178 | -7/Garrison | Triggered checkpoint 3251 | -7/Garrison | Garrison Relay disabled 3300 | -7/Garrison | Triggered checkpoint 3319 | -7/Garrison | Released all parts (8) 3324 | -7/Garrison | Triggered checkpoint 3329 | -7/Garrison | Core integrity fell below 50% 3349 | -7/Garrison | Lost 4 parts (3n1w) 3362 | -7/Garrison | Core integrity fell below 20% 3363 | -7/Garrison | Released all parts (1) 3367 | -7/Garrison | Destroyed by S-27 Virus with Autogun Last Messages --------------- 03322_ Trap Extractor dropped Hellfire Trap. 03324_ Beams of light sweep through the air. An alarm sounds. 03324_ Trap Extractor dropped Hellfire Trap. 03326_ Dropped Trap Extractor. 03327_ &OFNXOR5VJ8JPGNG 9>7BN5GBLVM6I1MMR 03333_ Acquired Neutrino Core. 03342_ U4MKH0O/#